bitfinex/quotes_ETHUSD_20251025
["timestamp","ask_amount","ask_price","bid_price","bid_amount"]
[1761398660005,0.001,3943.2,3943.1,9.91501357]
[1761398664315,0.001,3943.2,3943.1,10.35281357]
[1761398664816,0.001,3943.2,3943.1,9.91501357]
[1761398665193,0.001,3943.2,3943.1,6.70701357]
[1761398665396,0.001,3943.2,3943.1,9.91501357]
[1761398668310,0.001,3943.2,3943.1,8.54906552]
[1761398671392,0.001,3943.2,3943.1,8.98686552]
[1761398671817,0.001,3943.2,3943.1,5.77886552]
[1761398672024,0.001,3943.2,3943.1,8.98586552]
[1761398672608,0.001,3943.2,3943.1,8.54806552]
[1761398673505,0.001,3943.2,3943.1,8.98586552]
[1761398675331,0.001,3943.2,3943.1,8.54806552]
[1761398675837,0.001,3943.2,3943.1,8.98586552]
[1761398678028,0.001,3943.2,3943.1,5.77886552]
[1761398678233,0.001,3943.2,3943.1,8.98586552]
[1761398679308,0.001,3943.2,3943.1,8.54806552]
[1761398679628,0.001,3943.2,3943.1,9.00426552]
[1761398684013,0.001,3943.2,3943.1,9.51114552]
[1761398684248,0.001,3943.2,3943.1,5.21386552]
[1761398684449,0.1,3943.2,3943.1,2.53807567]
[1761398684636,0.1,3943.2,3943.1,3.45052838]
[1761398684948,0.1,3943.2,3943.1,7.29927567]
[1761398688662,0.1,3943.2,3943.1,5.74407567]
[1761398691378,0.001,3943.2,3943.1,5.74407567]
[1761398692462,0.1,3943.2,3943.1,5.74407567]
[1761398692776,0.001,3943.2,3943.1,5.74407567]
[1761398693077,0.001,3943.2,3943.1,2.53807567]
[1761398693250,0.1,3943.2,3943.1,5.74407567]
[1761398693644,0.001,3943.2,3943.1,5.74407567]
[1761398694050,0.001,3943.2,3943.1,5.87127567]
[1761398695878,0.1,3943.2,3943.1,5.87127567]
[1761398696084,0.001,3943.2,3943.1,5.87127567]
[1761398698223,0.001,3943.2,3943.1,2.53807567]
[1761398698421,0.1,3943.2,3943.1,5.74407567]
[1761398698719,0.001,3943.2,3943.1,5.74407567]
[1761398699223,0.1,3943.2,3943.1,5.74407567]
[1761398699580,0.001,3943.2,3943.1,5.74407567]
[1761398700109,0.1,3943.2,3943.1,5.74407567]
[1761398700708,0.1,3943.2,3943.1,2.53807567]
[1761398701004,0.1,3943.2,3943.1,5.74407567]
[1761398707716,0.1,3943.2,3943.1,2.53807567]
[1761398707903,0.1,3943.2,3943.1,5.74407567]
[1761398708837,0.1,3943.2,3943.1,0.002]
[1761398709212,2.76321136,3943.2,3943.1,3.208]
[1761398709417,3.37723457,3943.2,3943.1,3.208]
[1761398709625,3.50363457,3943.2,3943.1,3.208]
[1761398709841,3.50363457,3943.2,3943.1,0.002]
[1761398712602,0.86862321,3943.2,3943.1,0.002]
[1761398712803,0.3536,3943.2,3943.1,0.002]
[1761398714154,0.1282,3943.2,3943.1,0.002]
[1761398714645,0.2272,3943.2,3943.1,0.002]
[1761398716253,0.1282,3943.2,3943.1,0.002]
[1761398719664,0.2272,3943.2,3943.1,0.002]
[1761398721240,0.1282,3943.2,3943.1,0.002]
[1761398721440,0.1282,3943.2,3943.1,2.53807567]
[1761398721873,0.1282,3943.2,3943.1,0.002]
[1761398725860,0.39461293,3943.2,3943.1,0.002]
[1761398727043,0.49361293,3943.2,3943.1,0.002]
[1761398733745,3.02962429,3943.2,3943.1,0.002]
[1761398735274,0.49361293,3943.2,3943.1,0.002]
[1761398735483,0.1282,3943.2,3943.1,0.002]
[1761398735657,0.2272,3943.2,3943.1,0.002]
[1761398737971,0.1282,3943.2,3943.1,0.002]
[1761398738351,0.2272,3943.2,3943.1,0.002]
[1761398739368,2.76321136,3943.2,3943.1,0.002]
[1761398739569,6.49270979,3943.2,3943.1,0.002]
[1761398740042,7.25432344,3943.2,3943.1,0.002]
[1761398746763,7.15532344,3943.2,3943.1,0.002]
[1761398747086,7.25432344,3943.2,3943.1,0.002]
[1761398748655,7.15532344,3943.2,3943.1,0.002]
[1761398749082,3.77830268,3943.2,3943.1,0.002]
[1761398749294,3.11568903,3943.2,3943.1,0.002]
[1761398749590,3.01668903,3943.2,3943.1,0.002]
[1761398749767,3.45458903,3943.2,3943.1,0.002]
[1761398754275,3.01668903,3943.2,3943.1,0.002]
[1761398759114,3.11568903,3943.2,3943.1,0.002]
[1761398760842,15.1073824,3943.2,3943.1,0.002]
[1761398760994,17.50895216,3943.2,3943.1,0.002]
[1761398766525,14.83995216,3943.2,3943.1,0.002]
[1761398769423,17.50895216,3943.2,3943.1,0.002]
[1761398771340,14.83995216,3943.2,3943.1,0.002]
[1761398772145,15.74514229,3943.2,3943.1,0.002]
[1761398773163,14.83995216,3943.2,3943.1,0.002]
[1761398773369,15.74681777,3943.2,3943.1,0.002]
[1761398773568,15.64781777,3943.2,3943.1,0.002]
[1761398773759,14.74095216,3943.2,3943.1,0.002]
[1761398774273,14.83995216,3943.2,3943.1,0.002]
[1761398774662,14.74095216,3943.2,3943.1,0.002]
[1761398775355,15.42093226,3943.2,3943.1,0.002]
[1761398775559,14.83995216,3943.2,3943.1,0.002]
[1761398776935,14.74095216,3943.2,3943.1,0.002]
[1761398777370,14.83995216,3943.2,3943.1,0.002]
[1761398783013,21.13095216,3943.2,3943.1,0.002]
[1761398783291,3.04308431,3942.9,3942.8,0.002]
[1761398783492,2.53646163,3942.5,3942.4,0.002]
[1761398783794,11.478475,3942.5,3942.4,0.002]
[1761398784212,11.58005623,3942.5,3942.4,0.002]
[1761398784430,12.18593623,3942.5,3942.4,0.002]
[1761398785579,13.09276319,3942.5,3942.4,0.002]
[1761398785755,13.89452894,3942.5,3942.4,0.002]
[1761398786193,16.56352894,3942.5,3942.4,0.002]
[1761398786406,7.10021237,3942.1,3941.5,0.002]
[1761398786555,10.30321237,3942.1,3941.5,0.002]
[1761398786764,10.95195633,3942.1,3941.5,0.002]
[1761398787063,12.60615633,3942.1,3941.5,0.002]
[1761398787263,12.97805633,3942.1,3941.5,0.002]
[1761398788593,12.97805633,3942.1,3941.6,0.4709]
[1761398790889,12.97805633,3942.1,3941.5,0.002]
[1761398790890,13.07705633,3942.1,3941.5,0.002]
[1761398791089,13.75692538,3942.1,3941.5,0.002]
[1761398791291,13.07705633,3942.1,3941.5,0.002]
[1761398791535,12.97805633,3942.1,3941.5,0.002]
[1761398793628,19.36805633,3942.1,3941.5,0.002]
[1761398794697,19.36805633,3942.1,3941.5,0.4729]
[1761398796075,18.86117633,3942.1,3941.5,0.4729]
[1761398796737,18.86117633,3942.1,3941.5,0.002]
[1761398797067,19.36805633,3942.1,3941.6,0.4709]
[1761398799507,18.86117633,3942.1,3941.6,0.4709]
[1761398799794,15.31144296,3942.1,3942.0,0.4477]
[1761398800296,15.31144296,3942.1,3942.0,0.002]
[1761398803482,14.84054296,3942.1,3942.0,0.002]
[1761398804067,14.94213555,3942.1,3942.0,0.002]
[1761398809497,14.94213555,3942.1,3942.0,0.4477]
[1761398810301,15.6220046,3942.1,3942.0,0.4477]
[1761398812313,14.94213555,3942.1,3942.0,0.002]
[1761398812672,14.94213555,3942.1,3942.0,0.4477]
[1761398814999,14.94213555,3942.1,3942.0,0.002]
[1761398817191,17.61113555,3942.1,3942.0,0.002]
[1761398817414,14.94213555,3942.1,3942.0,0.002]
[1761398820705,18.32386181,3942.1,3942.0,0.002]
[1761398821204,18.32386181,3942.1,3942.0,0.4763]
[1761398821699,19.23068877,3942.1,3942.0,0.4763]
[1761398821898,18.32386181,3942.1,3942.0,0.4763]
[1761398822107,19.23068877,3942.1,3942.0,0.4763]
[1761398823342,21.53068877,3942.1,3942.0,0.4763]
[1761398823745,21.53068877,3942.1,3942.0,0.002]
[1761398826451,21.42909618,3942.1,3942.0,0.002]
[1761398826968,21.52809618,3942.1,3942.0,0.002]
[1761398827319,21.42909618,3942.1,3942.0,0.002]
[1761398830358,21.42909618,3942.1,3941.2,0.002]
[1761398830359,2.53697643,3941.7,3941.2,0.002]
[1761398830673,4.7079139,3941.3,3941.2,0.002]
[1761398830854,11.29164016,3941.3,3941.2,0.002]
[1761398831036,11.18304016,3941.3,3941.2,0.002]
[1761398831544,12.09050668,3941.3,3941.2,0.002]
[1761398831742,13.68904638,3941.3,3941.2,0.002]
[1761398832555,12.78157986,3941.3,3941.2,0.002]
[1761398832765,12.78157986,3941.3,3941.2,0.2257]
[1761398832923,12.78157986,3941.3,3941.2,0.6813]
[1761398833124,15.53917986,3941.3,3941.2,0.6813]
[1761398833324,15.53917986,3941.3,3941.2,0.002]
[1761398834458,16.21904455,3941.3,3941.2,0.002]
[1761398834668,15.53917986,3941.3,3941.2,0.002]
[1761398835446,16.21887654,3941.3,3941.2,0.002]
[1761398836566,15.08157986,3941.3,3941.2,0.002]
[1761398836869,15.18067986,3941.3,3941.2,0.002]
[1761398837074,16.08814638,3941.3,3941.2,0.002]
[1761398837272,18.76014638,3941.3,3941.2,0.002]
[1761398837474,15.18320342,3941.3,3941.2,0.002]
[1761398838174,16.09066994,3941.3,3941.2,0.002]
[1761398839281,5.71624266,3941.1,3940.2,0.2227]
[1761398839455,7.98161967,3940.4,3940.2,0.2227]
[1761398839662,11.18361967,3940.4,3940.2,0.2227]
[1761398839860,7.80189341,3940.4,3940.3,0.4576]
[1761398840447,7.92909341,3940.4,3940.3,0.4576]
[1761398845086,3.3292,3940.4,3940.3,0.4576]
[1761398845975,5.86701341,3940.4,3940.3,0.4576]
[1761398847486,2.66501341,3940.4,3940.3,0.4576]
[1761398852213,2.66501341,3940.4,3940.3,0.002]
[1761398852214,5.74558039,3940.4,3940.3,0.002]
[1761398856298,5.74558039,3940.4,3940.3,0.4576]
[1761398858117,4.09301341,3940.4,3940.3,0.4576]
[1761398860283,4.09301341,3940.4,3940.3,0.002]
[1761398860718,4.09301341,3940.4,3940.3,0.4367]
[1761398861092,2.53781341,3940.4,3940.3,0.4367]
[1761398862224,2.66501341,3940.4,3940.3,0.4367]
[1761398863819,8.79185635,3940.6,3940.3,0.4367]
[1761398863820,3.202,3940.6,3940.3,0.4367]
[1761398864020,0.1272,3940.4,3940.3,0.4367]
[1761398866625,0.1250816,3940.4,3940.3,0.75674053]
[1761398868134,0.001,3940.7,3940.3,0.75674053]
[1761398868333,0.001,3940.7,3940.4,0.4347]
[1761398868334,0.1272,3940.5,3940.4,0.4347]
[1761398869111,0.1272,3940.5,3940.4,2.97251341]
[1761398869704,0.001,3940.7,3940.4,2.97251341]
[1761398869705,0.001,3940.7,3940.6,2.53768461]
[1761398870031,0.001,3940.7,3940.6,6.30262441]
[1761398870236,0.001,3940.7,3940.6,6.73732441]
[1761398872447,0.001,3940.7,3940.6,6.86452441]
[1761398872635,0.001,3940.7,3940.6,3.66352441]
[1761398872966,0.001,3940.7,3940.6,6.99172441]
[1761398880272,0.001,3940.7,3940.6,3.79072441]
[1761398880452,0.001,3940.7,3940.6,6.99072441]
[1761398880659,0.001,3940.7,3940.6,3.79072441]
[1761398880963,0.001,3940.7,3940.6,6.99072441]
[1761398886287,0.001,3940.7,3940.6,6.86352441]
[1761398891583,0.001,3940.7,3940.6,8.41872441]
[1761398905178,0.001,3940.7,3940.6,6.13117712]
[1761398905467,0.001,3940.7,3940.6,8.41962441]
[1761398906642,0.001,3940.7,3940.6,5.22062441]
[1761398906838,0.001,3940.7,3940.6,8.41962441]
[1761398916610,0.001,3940.7,3940.6,4.78402441]
[1761398916815,0.001,3940.7,3940.6,7.98302441]
[1761398917019,0.001,3940.7,3940.6,4.78402441]
[1761398917202,0.001,3940.7,3940.6,7.41808461]
[1761398917381,0.001,3940.7,3940.6,7.85468461]
[1761398922014,0.001,3940.7,3940.6,4.65668461]
[1761398922319,0.001,3940.7,3940.6,7.85468461]
[1761398922496,0.001,3940.7,3940.6,4.65668461]
[1761398922822,0.001,3940.7,3940.6,7.85468461]
[1761398924211,0.001,3940.7,3940.6,7.41808461]
[1761398927435,0.001,3940.7,3940.6,7.88538461]
[1761398933246,0.001,3940.7,3940.6,9.01934955]
[1761398934453,0.001,3940.7,3940.6,8.55204955]
[1761398936720,0.001,3940.7,3940.6,9.01934955]
[1761398942347,0.001,3940.7,3940.6,7.88538461]
[1761398944660,0.001,3940.7,3940.6,7.41808461]
[1761398947048,0.001,3940.7,3940.6,7.87958461]
[1761398952345,0.001,3940.7,3940.6,8.79203732]
[1761398952546,0.001,3940.7,3940.6,7.87958461]
[1761398952748,0.001,3940.7,3940.6,10.27708174]
[1761398959761,0.001,3940.7,3940.6,5.70407026]
[1761398959981,0.001,3940.7,3940.6,7.41708461]
[1761398964723,0.001,3940.7,3940.6,4.22008461]
[1761398964890,0.001,3940.7,3940.6,7.41708461]
[1761398967112,0.001,3940.7,3940.6,7.41608461]
[1761398969633,0.001,3940.7,3940.6,4.22008461]
[1761398969802,0.001,3940.7,3940.4,0.91551148]
[1761398969803,0.1001,3940.7,3940.4,0.91551148]
[1761398969999,0.1001,3940.7,3940.6,3.196]
[1761398970435,0.001,3940.7,3940.6,5.73368461]
[1761398970635,0.1282,3940.7,3940.6,5.73368461]
[1761398973319,0.2273,3940.7,3940.6,5.73368461]
[1761398973523,0.2273,3940.7,3940.6,3.196]
[1761398973928,0.2273,3940.7,3940.5,2.53774528]
[1761398974230,0.2273,3940.7,3940.4,0.1292]
[1761398974231,0.0991,3940.6,3940.4,2.66699901]
[1761398974430,0.0991,3940.6,3940.5,3.196]
[1761398974733,0.2273,3940.6,3940.5,5.73374901]
[1761398975039,0.2273,3940.6,3940.5,3.196]
[1761398975239,0.1282,3940.6,3940.5,3.196]
[1761398977254,0.1282,3940.6,3940.4,2.53979703]
[1761398977461,0.1282,3940.6,3940.5,3.196]
[1761398977820,0.1282,3940.6,3940.5,5.73374901]
[1761398979854,0.1292,3940.6,3940.5,5.73374901]
[1761398982033,0.1292,3940.6,3940.5,3.196]
[1761398982662,0.1292,3940.6,3940.5,5.73374901]
[1761398983060,0.1292,3940.6,3940.5,2.53774901]
[1761398983263,0.1292,3940.6,3940.5,5.73374901]
[1761398983983,0.2283,3940.6,3940.5,5.73374901]
[1761398986359,0.2283,3940.6,3940.4,0.002]
[1761398986559,0.0991,3940.5,3940.4,0.002]
[1761398986764,0.0991,3940.5,3940.4,3.198]
[1761398987285,0.2283,3940.5,3940.4,0.002]
[1761398987466,0.3555,3940.5,3940.4,3.198]
[1761398987654,0.64501118,3940.5,3940.4,3.198]
[1761398988988,0.64501118,3940.5,3940.4,0.002]
[1761398989173,0.3555,3940.5,3940.4,3.198]
[1761398989688,3.40535405,3940.5,3940.4,0.002]
[1761398990006,0.3555,3940.5,3940.4,3.198]
[1761398990188,2.89324901,3940.5,3940.4,0.002]
[1761398990393,3.74151436,3940.5,3940.4,0.002]
[1761398993906,0.1292,3940.5,3940.4,2.53981341]
[1761398994107,0.001,3940.6,3940.4,2.53981341]
[1761398994108,0.001,3940.6,3940.5,2.53774901]
[1761398994293,0.001,3940.6,3940.5,5.03034177]
[1761398994615,0.001,3940.6,3940.5,4.53094901]
[1761398994777,0.001,3940.6,3940.5,8.72508181]
[1761398994976,0.001,3940.6,3940.5,5.52908181]
[1761398995197,0.001,3940.6,3940.5,8.72508181]
[1761398996193,0.001,3940.6,3940.5,5.52908181]
[1761398996408,0.001,3940.6,3940.5,7.28894901]
[1761398997588,0.001,3940.6,3940.5,4.09294901]
[1761398997787,0.001,3940.6,3940.5,7.28894901]
[1761398998089,0.001,3940.6,3940.5,5.73374901]
[1761398998613,0.1095,3940.6,3940.5,5.73374901]
[1761399000623,0.1095,3940.6,3940.5,2.53774901]
[1761399000922,0.1095,3940.6,3940.5,5.73374901]
[1761399001295,0.1095,3940.6,3940.5,3.196]
[1761399001825,0.1095,3940.6,3940.5,5.73374901]
[1761399004031,0.1095,3940.6,3940.5,6.60479152]
[1761399004231,0.001,3940.6,3940.5,6.60479152]
[1761399005030,0.001,3940.6,3940.5,6.60379152]
[1761399007331,0.001,3940.6,3940.5,3.40879152]
[1761399007525,0.001,3940.6,3940.5,6.60379152]
[1761399009352,0.001,3940.6,3940.5,3.40879152]
[1761399009536,0.001,3940.6,3940.5,6.60379152]
[1761399010319,0.001,3940.6,3940.5,5.73274901]
[1761399010850,0.1282,3940.6,3940.5,3.195]
[1761399011355,0.2554,3940.6,3940.5,3.195]
[1761399014052,0.3544,3940.6,3940.5,3.195]
[1761399014250,0.3544,3940.6,3940.4,0.002]
[1761399014451,0.2554,3940.6,3940.5,3.16]
[1761399014758,0.2554,3940.6,3940.4,0.002]
[1761399014759,0.1282,3940.6,3940.4,0.002]
[1761399014962,0.39487718,3940.6,3940.5,3.195]
[1761399015133,0.65027718,3940.6,3940.5,3.195]
[1761399015558,0.74927718,3940.6,3940.5,3.195]
[1761399015752,0.74927718,3940.6,3940.5,0.002]
[1761399017026,0.49387718,3940.6,3940.5,0.002]
[1761399017948,0.1282,3940.6,3940.5,0.002]
[1761399018152,2.76488461,3940.6,3940.5,0.002]
[1761399019561,0.2272,3940.6,3940.5,0.002]
[1761399021370,2.76488461,3940.6,3940.5,0.002]
[1761399027564,3.37337991,3940.6,3940.5,0.002]
[1761399027754,3.96457374,3940.6,3940.5,0.002]
[1761399028056,5.51977374,3940.6,3940.5,0.002]
[1761399030146,11.90977374,3940.6,3940.5,0.002]
[1761399039505,11.30389374,3940.6,3940.5,0.002]
[1761399039711,11.30389374,3940.6,3940.5,0.4647]
[1761399040164,11.81077374,3940.6,3940.5,0.4647]
[1761399040364,11.81077374,3940.6,3940.5,0.002]
[1761399041099,11.81077374,3940.6,3940.5,0.4647]
[1761399041599,10.25557374,3940.6,3940.5,0.4647]
[1761399044296,10.25557374,3940.6,3940.5,0.002]
[1761399044909,10.35457374,3940.6,3940.5,0.002]
[1761399047010,10.25557374,3940.6,3940.5,0.002]
[1761399050786,12.55557374,3940.6,3940.5,0.002]
[1761399053835,12.55557374,3940.6,3940.5,0.4647]
[1761399054038,9.32508,3940.6,3940.5,0.4647]
[1761399054337,11.86276461,3940.6,3940.5,0.4647]
[1761399057122,11.86276461,3940.6,3940.5,0.002]
[1761399057732,11.86276461,3940.6,3940.5,0.4647]
[1761399063759,11.35588461,3940.6,3940.5,0.002]
[1761399064061,11.35588461,3940.6,3940.5,0.464]
[1761399064239,11.35588461,3940.6,3940.5,0.002]
[1761399065433,8.8182,3940.6,3940.5,0.002]
[1761399065973,13.7322742,3940.6,3940.5,0.002]
[1761399066693,13.6332742,3940.6,3940.5,0.002]
[1761399070696,7.2432742,3940.6,3940.5,0.002]
[1761399078390,5.47276461,3940.6,3940.5,0.4385]
[1761399078606,2.93508,3940.6,3940.5,0.4385]
[1761399078818,5.47276461,3940.6,3940.5,0.4385]
[1761399085553,2.4282,3940.6,3940.5,0.4385]
[1761399091728,2.4282,3940.6,3940.5,0.002]
[1761399092051,2.4282,3940.6,3940.5,0.4385]
[1761399092252,2.301,3940.6,3940.5,0.4385]
[1761399102353,2.4282,3940.6,3940.5,0.4385]
[1761399102755,2.4282,3940.6,3940.5,2.97624901]
[1761399103290,0.1282,3940.6,3940.5,2.97624901]
[1761399103779,0.1282,3940.6,3940.5,3.86977732]
[1761399107693,0.001,3940.6,3940.5,3.86977732]
[1761399110295,0.001,3940.6,3940.5,7.06277732]
[1761399112316,0.001,3940.6,3940.5,3.86977732]
[1761399112518,0.001,3940.6,3940.5,7.06277732]
[1761399117825,0.001,3940.6,3940.5,3.86977732]
[1761399118032,0.001,3940.6,3940.5,7.06277732]
[1761399118733,0.001,3940.6,3940.5,8.74517732]
[1761399119094,0.001,3940.6,3940.5,8.87337732]
[1761399124254,0.001,3940.6,3940.5,5.68037732]
[1761399124429,0.001,3940.6,3940.5,8.78307732]
[1761399124748,0.001,3940.6,3940.5,8.65487732]
[1761399136407,0.001,3940.6,3940.5,5.46287732]
[1761399136617,0.001,3940.6,3940.5,8.65487732]
[1761399137824,0.001,3940.6,3940.5,8.75645984]
[1761399138627,0.001,3940.6,3940.5,5.56445984]
[1761399138789,0.001,3940.6,3940.5,8.28205984]
[1761399139224,0.001,3940.6,3940.5,8.74215984]
[1761399140800,0.001,3940.6,3940.5,5.55015984]
[1761399141131,0.001,3940.6,3940.5,8.74215984]
[1761399146248,0.001,3940.6,3940.5,9.65567132]
[1761399148897,0.001,3940.6,3940.5,9.78287132]
[1761399149958,0.001,3940.6,3940.5,6.59087132]
[1761399150136,0.001,3940.6,3940.5,9.32177132]
[1761399150815,0.001,3940.6,3940.5,6.13077132]
[1761399151020,0.001,3940.6,3940.5,9.32177132]
[1761399152249,0.001,3940.6,3940.5,9.78187132]
[1761399180011,0.001,3940.6,3940.5,8.86835984]
[1761399180809,0.001,3940.6,3940.5,10.2369656]
[1761399181245,0.001,3940.6,3940.5,8.86835984]
[1761399184767,0.001,3940.6,3940.5,10.2369656]
[1761399186344,0.001,3940.6,3940.5,8.86835984]
[1761399186755,0.001,3940.6,3940.5,11.91718246]
[1761399188337,0.001,3940.6,3940.5,13.28569191]
[1761399188743,0.001,3941.0,3940.5,13.28569191]
[1761399188744,1e-08,3941.0,3940.9,4.09269143]
[1761399189064,1e-08,3941.0,3940.9,11.74557882]
[1761399189291,1e-08,3941.0,3940.9,12.17907882]
[1761399189432,1e-08,3941.0,3940.9,12.28063607]
[1761399190347,1e-08,3941.0,3940.9,13.64771011]
[1761399193405,1e-08,3941.0,3940.9,12.28063607]
[1761399197673,1e-08,3941.0,3940.9,11.84713607]
[1761399197880,1e-08,3941.0,3940.9,12.28063607]
[1761399198713,1e-08,3941.0,3940.9,12.40783607]
[1761399198920,1e-08,3941.0,3940.9,6.64583792]
[1761399199234,0.09900001,3941.0,3940.9,7.91182233]
[1761399200325,0.09900001,3941.0,3940.9,7.91082233]
[1761399202125,1e-08,3941.0,3940.9,7.91082233]
[1761399202826,1e-08,3941.0,3940.9,7.91182233]
[1761399203829,1e-08,3941.0,3940.9,7.91082233]
[1761399204327,1e-08,3941.0,3940.9,4.59462233]
[1761399204328,0.09900001,3941.0,3940.9,4.59462233]
[1761399204507,0.09900001,3941.0,3940.9,7.78362233]
[1761399205934,1e-08,3941.0,3940.9,7.78362233]
[1761399211537,1e-08,3941.0,3940.9,8.21712233]
[1761399211742,1e-08,3941.0,3940.9,9.51082444]
[1761399212235,1e-08,3941.0,3940.9,9.07732444]
[1761399212402,1e-08,3941.0,3940.9,9.51082444]
[1761399219026,1e-08,3941.0,3940.9,9.51282444]
[1761399221267,1e-08,3941.0,3940.9,10.42314891]
[1761399226383,1e-08,3941.0,3940.9,9.51282444]
[1761399226683,1e-08,3941.0,3940.9,10.87989848]
[1761399226888,1e-08,3941.0,3940.9,10.98145547]
[1761399227983,1e-08,3941.0,3940.9,9.61438143]
[1761399228809,1e-08,3941.0,3940.9,5.99188143]
[1761399229108,1e-08,3941.0,3940.9,9.62518143]
[1761399230288,1e-08,3941.0,3940.9,10.99289817]
[1761399232208,1e-08,3941.0,3940.9,7.80389817]
[1761399232409,1e-08,3941.0,3940.9,10.99289817]
[1761399234318,1e-08,3941.0,3940.9,10.99189817]
[1761399236410,1e-08,3941.0,3940.9,7.35959817]
[1761399236604,1e-08,3941.0,3940.9,10.54759817]
[1761399237524,1e-08,3941.0,3940.9,10.99189817]
[1761399241302,1e-08,3941.0,3940.9,9.62418143]
[1761399244831,1e-08,3941.0,3940.9,10.46087571]
[1761399245136,1e-08,3941.0,3940.9,13.50969833]
[1761399245539,1e-08,3941.0,3940.9,10.46087571]
[1761399246529,1e-08,3941.0,3940.9,13.50969833]
[1761399246738,1e-08,3941.0,3940.9,10.46087571]
[1761399247703,1e-08,3941.0,3940.9,6.82857571]
[1761399248041,1e-08,3941.0,3940.9,9.15305027]
[1761399248215,1e-08,3941.0,3940.9,8.24432233]
[1761399248617,1e-08,3941.0,3940.9,9.61280155]
[1761399248827,1e-08,3941.0,3940.9,9.15310155]
[1761399250046,1e-08,3941.0,3940.9,3.04142233]
[1761399250345,1e-08,3941.0,3940.9,5.50902662]
[1761399250546,0.09900001,3941.0,3940.9,0.5039309]
[1761399250710,0.09900001,3941.0,3940.9,3.6919309]
[1761399250919,0.20058228,3941.0,3940.9,3.6919309]
[1761399251821,0.20058228,3941.0,3940.9,6.22942233]
[1761399253459,0.20058228,3941.0,3940.9,3.6919309]
[1761399255057,0.20058228,3941.0,3940.9,6.22942233]
[1761399255847,0.10158228,3941.0,3940.9,6.22942233]
[1761399256755,0.20058228,3941.0,3940.9,6.22942233]
[1761399258059,0.09900001,3941.0,3940.9,6.22942233]
[1761399258861,1e-08,3941.0,3940.9,6.35662233]
[1761399259840,1e-08,3941.0,3940.9,3.16862233]
[1761399260329,1e-08,3941.0,3940.9,6.35662233]
[1761399264863,1e-08,3941.0,3940.9,3.16862233]
[1761399265069,1e-08,3941.0,3940.9,6.35662233]
[1761399265461,1e-08,3941.0,3940.9,3.16862233]
[1761399265662,1e-08,3941.0,3940.9,6.35662233]
[1761399268564,1e-08,3941.0,3940.9,3.16862233]
[1761399268766,1e-08,3941.0,3940.9,6.35662233]
[1761399269731,1e-08,3941.0,3940.9,3.16862233]
[1761399269940,1e-08,3941.0,3940.9,6.35662233]
[1761399271166,1e-08,3941.0,3940.9,9.30691626]
[1761399271370,1e-08,3941.0,3940.9,9.69915429]
[1761399272270,1e-08,3941.0,3940.9,11.06763351]
[1761399272469,1e-08,3941.0,3940.9,11.46083976]
[1761399273144,1e-08,3941.0,3940.9,10.70079031]
[1761399274867,1e-08,3941.0,3940.9,10.30758406]
[1761399277471,1e-08,3941.0,3940.9,10.70079031]
[1761399278040,1e-08,3941.0,3940.9,7.51279031]
[1761399278244,1e-08,3941.0,3940.9,10.70079031]
[1761399281878,1e-08,3941.0,3940.9,10.30758406]
[1761399287161,1e-08,3941.0,3940.9,10.29848406]
[1761399287362,1e-08,3941.0,3940.9,9.90524603]
[1761399290891,1e-08,3941.0,3940.9,6.71824603]
[1761399291073,1e-08,3941.0,3940.9,9.90524603]
[1761399294506,1e-08,3941.0,3940.9,5.76076603]
[1761399294666,1e-08,3941.0,3940.9,8.94776603]
[1761399294866,1e-08,3941.0,3940.9,9.39836603]
[1761399297473,1e-08,3941.0,3940.9,8.94776603]
[1761399298598,1e-08,3941.0,3940.9,9.39836603]
[1761399300078,1e-08,3941.0,3940.9,9.79060406]
[1761399300377,0.001,3941.8,3940.9,9.79060406]
[1761399300378,0.001,3943.2,3941.7,0.2315]
[1761399300580,0.001,3943.2,3943.0,7.64123428]
[1761399300792,0.001,3943.2,3943.0,11.7614772]
[1761399300995,0.001,3943.2,3943.0,12.2203772]
[1761399301308,0.001,3943.2,3943.0,5.85869967]
[1761399301608,0.001,3943.2,3943.0,7.39183926]
[1761399303085,0.001,3943.2,3943.0,8.75630823]
[1761399303291,0.001,3943.2,3943.0,7.39183926]
[1761399305206,0.001,3943.2,3943.0,8.30024002]
[1761399305645,0.001,3943.2,3943.0,7.39183926]
[1761399305941,0.001,3943.2,3943.0,9.66520086]
[1761399306438,0.001,3943.2,3943.0,9.56370159]
[1761399307501,0.001,3943.2,3943.0,8.6556835]
[1761399308726,0.001,3943.2,3943.0,11.7007483]
[1761399309743,0.001,3943.2,3943.0,4.58167021]
[1761399309744,0.101,3943.1,3943.0,4.58167021]
[1761399309922,0.101,3943.1,3943.0,2.53613999]
[1761399310125,0.101,3943.1,3943.0,5.73313999]
[1761399310498,0.101,3943.1,3943.0,5.86033999]
[1761399312906,0.101,3943.1,3943.0,2.66333999]
[1761399313137,0.101,3943.1,3943.0,5.73313999]
[1761399313621,0.20252889,3943.1,3943.0,5.73313999]
[1761399318029,0.101,3943.1,3943.0,5.73313999]
[1761399318222,0.001,3943.1,3943.0,5.73313999]
[1761399318745,0.001,3943.1,3943.0,8.60079648]
[1761399318945,0.001,3943.1,3943.0,8.72799648]
[1761399319647,0.001,3943.1,3943.0,8.93538319]
[1761399319947,0.001,3943.1,3943.0,8.25519648]
[1761399320123,0.001,3943.1,3943.0,8.93538319]
[1761399320532,0.001,3943.1,3943.0,9.40818319]
[1761399321824,0.001,3943.1,3943.0,6.21118319]
[1761399322012,0.001,3943.1,3943.0,8.93538319]
[1761399324018,0.001,3943.1,3943.0,8.93438319]